bitfinex/quotes_BTCUSD_20250910
["timestamp","ask_amount","ask_price","bid_price","bid_amount"]
[1757484435343,0.74095578,111640.0,111630.0,0.02842893]
[1757484435570,1.08825484,111640.0,111630.0,0.02842893]
[1757484436524,0.58991578,111640.0,111630.0,0.02842893]
[1757484436733,1.08825484,111640.0,111630.0,0.02842893]
[1757484438148,1.08825484,111640.0,111630.0,0.00568893]
[1757484438958,1.09030484,111640.0,111630.0,0.00568893]
[1757484439276,1.08825484,111640.0,111630.0,0.00568893]
[1757484439752,0.74095578,111640.0,111630.0,0.00568893]
[1757484439976,1.08825484,111640.0,111630.0,0.00568893]
[1757484440573,0.64903979,111640.0,111630.0,0.20759223]
[1757484440789,0.67164932,111640.0,111630.0,0.20759223]
[1757484441002,0.82268932,111640.0,111630.0,0.20759223]
[1757484441663,0.67164932,111640.0,111630.0,0.20759223]
[1757484441885,0.46989254,111640.0,111630.0,0.38124176]
[1757484442331,0.46989254,111640.0,111630.0,0.20759223]
[1757484442332,0.82268932,111640.0,111630.0,0.20759223]
[1757484442549,0.91460531,111640.0,111630.0,0.20759223]
[1757484444916,0.91460531,111640.0,111630.0,0.02842893]
[1757484445579,0.74095578,111640.0,111630.0,0.02842893]
[1757484445733,0.91460531,111640.0,111630.0,0.02842893]
[1757484445955,0.74095578,111640.0,111630.0,0.02842893]
[1757484446170,0.91460531,111640.0,111630.0,0.02842893]
[1757484446366,0.91460531,111640.0,111630.0,0.00568893]
[1757484447030,0.91460531,111640.0,111630.0,0.18485223]
[1757484447228,0.82268932,111640.0,111630.0,0.20759223]
[1757484447469,0.64354207,111640.0,111630.0,0.20759223]
[1757484447669,0.82268932,111640.0,111630.0,0.20759223]
[1757484449199,0.67164932,111640.0,111630.0,0.20759223]
[1757484449430,0.82268932,111640.0,111630.0,0.20759223]
[1757484450374,0.67164932,111640.0,111630.0,0.20759223]
[1757484450607,0.82268932,111640.0,111630.0,0.20759223]
[1757484451097,0.91460531,111640.0,111630.0,0.20759223]
[1757484452376,1.08825484,111640.0,111630.0,0.20759223]
[1757484453101,0.74095578,111640.0,111630.0,0.20759223]
[1757484453347,0.64903979,111640.0,111630.0,0.20759223]
[1757484453504,0.99633885,111640.0,111630.0,0.20759223]
[1757484454153,1.00483885,111640.0,111630.0,0.20759223]
[1757484455329,0.65753979,111640.0,111630.0,0.20759223]
[1757484455530,1.00483885,111640.0,111630.0,0.20759223]
[1757484455755,1.03033861,111640.0,111630.0,0.20759223]
[1757484455986,1.00483885,111640.0,111630.0,0.20759223]
[1757484456747,0.23543655,111640.0,111630.0,0.38124176]
[1757484456992,0.38647655,111640.0,111630.0,0.38124176]
[1757484457518,0.72647655,111640.0,111630.0,0.38124176]
[1757484458597,0.72647655,111640.0,111630.0,0.38224176]
[1757484459036,0.72647655,111640.0,111630.0,0.38324176]
[1757484459511,0.841,111650.0,111640.0,0.17914725]
[1757484459727,0.841,111650.0,111640.0,0.20703725]
[1757484459941,0.841,111650.0,111640.0,0.55433631]
[1757484459942,0.86792748,111650.0,111640.0,0.55433631]
[1757484466086,0.37692748,111650.0,111640.0,0.55433631]
[1757484466295,0.351,111650.0,111640.0,0.55433631]
[1757484466454,0.2,111660.0,111650.0,0.17913121]
[1757484466684,0.351,111660.0,111650.0,0.38424988]
[1757484466917,0.351,111660.0,111650.0,0.38201074]
[1757484467032,0.37792588,111660.0,111650.0,0.38201074]
[1757484467701,0.351,111660.0,111650.0,0.38201074]
[1757484469879,0.2,111660.0,111650.0,0.64957626]
[1757484470660,0.2,111660.0,111650.0,0.47592673]
[1757484471137,0.2,111660.0,111650.0,0.47792673]
[1757484471478,0.2,111660.0,111650.0,0.65157626]
[1757484471871,0.15096,111670.0,111660.0,0.17911517]
[1757484472128,0.15096,111670.0,111660.0,0.64346496]
[1757484472329,0.15096,111670.0,111660.0,0.64122603]
[1757484472771,0.71788221,111680.0,111670.0,0.17909913]
[1757484472974,0.71788221,111680.0,111670.0,0.38208739]
[1757484473181,0.71788221,111680.0,111670.0,0.38197866]
[1757484473823,0.2,111680.0,111670.0,0.4234071]
[1757484474037,0.00046272,111680.0,111670.0,0.59705663]
[1757484474252,0.00046272,111680.0,111670.0,0.4234071]
[1757484474875,0.00046272,111680.0,111670.0,0.5743671]
[1757484475486,0.00146272,111680.0,111670.0,0.5743671]
[1757484475906,0.00046272,111680.0,111670.0,0.5743671]
[1757484476322,0.00046272,111680.0,111670.0,0.4244071]
[1757484476532,0.00046272,111680.0,111670.0,0.4264071]
[1757484476735,0.00046272,111680.0,111670.0,0.5773271]
[1757484479635,0.00046272,111680.0,111670.0,0.4264071]
[1757484479884,0.00046272,111680.0,111670.0,0.5773271]
[1757484480277,0.00046272,111680.0,111670.0,0.40367757]
[1757484480496,0.00046272,111680.0,111670.0,0.5773271]
[1757484483755,0.17411225,111680.0,111670.0,0.40363757]
[1757484483978,0.17411225,111680.0,111670.0,0.18739913]
[1757484484224,0.38176225,111680.0,111670.0,0.18209913]
[1757484484466,0.35287178,111680.0,111670.0,0.18209913]
[1757484484680,0.34981178,111680.0,111670.0,0.18209913]
[1757484484907,0.17616225,111680.0,111670.0,0.18739913]
[1757484485356,0.00251272,111680.0,111670.0,0.18739913]
[1757484485571,0.00046272,111680.0,111670.0,0.45296465]
[1757484485786,0.15134272,111680.0,111670.0,0.47689465]
[1757484486635,0.00046272,111680.0,111670.0,0.47689465]
[1757484488363,0.00046272,111680.0,111670.0,0.41887593]
[1757484488596,0.00046272,111680.0,111670.0,0.5359185]
[1757484488817,0.00046272,111680.0,111670.0,0.8054185]
[1757484489704,0.00046272,111680.0,111670.0,0.87250009]
[1757484490554,0.0269167,111700.0,111690.0,0.17906706]
[1757484490772,0.95651081,111710.0,111700.0,0.17905102]
[1757484490981,0.98547529,111710.0,111700.0,0.17905102]
[1757484491217,0.64547529,111710.0,111700.0,0.17905102]
[1757484491442,0.98547529,111710.0,111700.0,0.17905102]
[1757484492288,0.98547529,111710.0,111700.0,0.18128915]
[1757484492492,0.98547529,111710.0,111700.0,0.18028915]
[1757484492899,0.98547529,111710.0,111700.0,0.17928915]
[1757484493817,0.98747529,111710.0,111700.0,0.17928915]
[1757484494346,0.98547529,111710.0,111700.0,0.17928915]
[1757484495326,0.98747529,111710.0,111700.0,0.17928915]
[1757484495544,0.87184448,111710.0,111700.0,0.17928915]
[1757484495754,0.98547529,111710.0,111700.0,0.17928915]
[1757484496294,0.98547529,111710.0,111700.0,0.18128915]
[1757484497042,0.83254529,111710.0,111700.0,0.18633915]
[1757484497262,0.86775448,111710.0,111700.0,0.18410102]
[1757484497483,0.71691448,111710.0,111700.0,0.18410102]
[1757484497669,0.37691448,111710.0,111700.0,0.18410102]
[1757484497912,0.52775448,111710.0,111700.0,0.25834423]
[1757484498123,0.50084,111710.0,111700.0,0.25834423]
[1757484500377,0.50084,111710.0,111700.0,0.20694102]
[1757484501386,0.5029,111710.0,111700.0,0.18410102]
[1757484501589,0.61853081,111710.0,111700.0,0.18410102]
[1757484501791,0.61853081,111710.0,111700.0,0.18107102]
[1757484502806,0.61853081,111710.0,111700.0,0.17905102]
[1757484503879,0.62157081,111710.0,111700.0,0.17905102]
[1757484505350,0.61853081,111710.0,111700.0,0.17905102]
[1757484508226,0.61853081,111710.0,111700.0,0.18410102]
[1757484508438,0.61647081,111710.0,111700.0,0.18410102]
[1757484509320,0.50084,111710.0,111700.0,0.18410102]
[1757484509513,0.61647081,111710.0,111700.0,0.20694102]
[1757484509672,0.61853081,111710.0,111700.0,0.18410102]
[1757484512554,0.61639081,111710.0,111700.0,0.18410102]
[1757484512800,0.61639081,111710.0,111700.0,0.20694102]
[1757484513242,0.61845081,111710.0,111700.0,0.18410102]
[1757484516040,0.61639081,111710.0,111700.0,0.18410102]
[1757484517290,0.50076,111710.0,111700.0,0.18410102]
[1757484517499,0.61639081,111710.0,111700.0,0.18410102]
[1757484520034,0.61845081,111710.0,111700.0,0.18410102]
[1757484521293,0.46769081,111710.0,111700.0,0.18410102]
[1757484521653,0.61635081,111710.0,111700.0,0.18410102]
[1757484523237,0.61835081,111710.0,111700.0,0.18410102]
[1757484525430,0.50272,111710.0,111700.0,0.18410102]
[1757484525633,0.61835081,111710.0,111700.0,0.18410102]
[1757484531332,0.61835081,111710.0,111700.0,0.17905102]
[1757484531557,0.61835081,111710.0,111700.0,0.18397102]
[1757484531954,0.61635081,111710.0,111700.0,0.18397102]
[1757484532494,0.50068,111710.0,111700.0,0.20888102]
[1757484532748,0.50068,111710.0,111700.0,0.27784223]
[1757484533155,0.61631081,111710.0,111700.0,0.27784223]
[1757484533799,0.61631081,111710.0,111700.0,0.18397102]
[1757484534050,0.61829081,111710.0,111700.0,0.18397102]
[1757484534274,0.61829081,111710.0,111700.0,0.17905102]
[1757484534495,0.61829081,111710.0,111700.0,0.18397102]
[1757484536553,0.50266,111710.0,111700.0,0.18397102]
[1757484536750,0.61829081,111710.0,111700.0,0.18397102]
[1757484540264,0.50266,111710.0,111700.0,0.18397102]
[1757484540495,0.50068,111710.0,111700.0,0.18397102]
[1757484540721,0.50068,111710.0,111700.0,0.27533923]
[1757484541516,0.50068,111710.0,111700.0,0.25042923]
[1757484542142,0.50266,111710.0,111700.0,0.24746923]
[1757484542352,0.50266,111710.0,111700.0,0.24550923]
[1757484542546,0.61829081,111710.0,111700.0,0.17905102]
[1757484542745,0.62141081,111710.0,111700.0,0.17905102]
[1757484542975,0.61829081,111710.0,111700.0,0.17905102]
[1757484543178,0.73704162,111710.0,111700.0,0.17905102]
[1757484543376,0.66947836,111710.0,111700.0,0.17905102]
[1757484543862,0.78510917,111710.0,111700.0,0.17905102]
[1757484544542,0.75636162,111710.0,111700.0,0.17905102]
[1757484544777,0.73704162,111710.0,111700.0,0.17905102]
[1757484547876,0.5441776,111700.0,111690.0,0.00013893]
[1757484548214,0.69,111660.0,111650.0,0.00895656]
[1757484548315,0.69,111660.0,111650.0,0.18808766]
[1757484548553,0.69,111660.0,111650.0,0.19347038]
[1757484548554,1.387799,111660.0,111650.0,0.19347038]
[1757484548801,0.8742195,111660.0,111650.0,0.21838038]
[1757484549272,1.047799,111660.0,111650.0,0.21838038]
[1757484549481,0.897159,111660.0,111650.0,0.21838038]
[1757484549687,0.8742195,111660.0,111650.0,0.27902888]
[1757484549906,1.047799,111660.0,111650.0,0.27902888]
[1757484550358,1.047799,111660.0,111650.0,0.28102888]
[1757484550802,0.897159,111660.0,111650.0,0.28102888]
[1757484551051,0.5735795,111660.0,111650.0,0.28102888]
[1757484551263,0.7242195,111660.0,111650.0,0.28202888]
[1757484551863,0.5735795,111660.0,111650.0,0.28202888]
[1757484552056,0.747159,111660.0,111650.0,0.22138038]
[1757484552268,0.897799,111660.0,111650.0,0.22138038]
[1757484552820,0.899779,111660.0,111650.0,0.19647038]
[1757484556079,0.897799,111660.0,111650.0,0.19647038]
[1757484558478,0.91447072,111660.0,111650.0,0.19647038]
[1757484558704,0.39025122,111660.0,111650.0,0.25492788]
[1757484558967,0.01667172,111660.0,111650.0,0.48654587]
[1757484559194,0.60884,111670.0,111660.0,0.17911517]
[1757484559426,0.94973198,111670.0,111660.0,0.18418517]
[1757484559635,0.9330595,111670.0,111660.0,0.20876517]
[1757484560346,0.94973236,111670.0,111660.0,0.20876517]
[1757484560544,0.79909236,111670.0,111660.0,0.20876517]
[1757484560780,0.5930995,111670.0,111660.0,0.27534627]
[1757484562365,0.5930995,111670.0,111660.0,0.20876517]
[1757484563148,0.4424195,111670.0,111660.0,0.20876517]
[1757484563410,0.5930595,111670.0,111660.0,0.20876517]
[1757484564233,0.60973889,111670.0,111660.0,0.20876517]
[1757484566464,0.5930595,111670.0,111660.0,0.20876517]
[1757484566687,0.61172537,111670.0,111660.0,0.17911517]
[1757484566906,0.78842487,111670.0,111660.0,0.17911517]
[1757484567156,0.61484537,111670.0,111660.0,0.17911517]
[1757484567377,0.61172537,111670.0,111660.0,0.17911517]
[1757484568248,0.61172537,111670.0,111660.0,0.18011517]
[1757484568919,0.61484537,111670.0,111660.0,0.18011517]
[1757484569149,0.61484537,111670.0,111660.0,0.18111517]
[1757484569843,0.78842487,111670.0,111660.0,0.18111517]
[1757484570534,0.967524,111670.0,111660.0,0.18111517]
[1757484570750,0.78842487,111670.0,111660.0,0.18011517]
[1757484571241,0.78842487,111670.0,111660.0,0.17911517]
[1757484572107,0.63778487,111670.0,111660.0,0.17911517]
[1757484572333,0.60974537,111670.0,111660.0,0.18418517]
[1757484572548,0.60977062,111670.0,111660.0,0.18418517]
[1757484572729,0.61175062,111670.0,111660.0,0.18418517]
[1757484572906,0.61175062,111670.0,111660.0,0.18118517]
[1757484573319,0.43817112,111670.0,111660.0,0.18118517]
[1757484573569,0.61175062,111670.0,111660.0,0.17911517]
[1757484573888,0.61275062,111670.0,111660.0,0.17911517]
[1757484574768,0.61175062,111670.0,111660.0,0.17911517]
[1757484576857,0.61178493,111670.0,111660.0,0.17911517]
[1757484577503,0.78848443,111670.0,111660.0,0.17911517]
[1757484578965,0.61490493,111670.0,111660.0,0.17911517]
[1757484579400,0.61178493,111670.0,111660.0,0.17911517]
[1757484586294,0.61174493,111670.0,111660.0,0.18425517]
[1757484587700,0.61177619,111670.0,111660.0,0.18425517]
[1757484592224,0.61177619,111670.0,111660.0,0.17911517]
[1757484592439,0.61177371,111670.0,111660.0,0.17911517]
[1757484593047,0.61177359,111670.0,111660.0,0.17911517]
[1757484593268,0.15,111660.0,111650.0,0.18855038]
[1757484593515,0.647759,111660.0,111650.0,0.18855038]
[1757484593735,0.66660261,111660.0,111650.0,0.18855038]
[1757484594176,0.649829,111660.0,111650.0,0.18855038]
[1757484594805,0.666601,111660.0,111650.0,0.18855038]
[1757484595246,0.649829,111660.0,111650.0,0.18855038]
[1757484596305,0.649789,111660.0,111650.0,0.19057038]
[1757484596746,0.649789,111660.0,111650.0,0.19369038]
[1757484597506,0.499229,111660.0,111650.0,0.19369038]
[1757484597693,0.649789,111660.0,111650.0,0.19369038]
[1757484599068,0.647719,111660.0,111650.0,0.19369038]
[1757484599914,0.647719,111660.0,111650.0,0.13497631]
[1757484600122,0.15,111660.0,111650.0,0.14393287]
[1757484600328,0.647719,111660.0,111650.0,0.14393287]
[1757484600650,0.4741395,111660.0,111650.0,0.19959462]
[1757484600850,0.4741395,111660.0,111650.0,0.22407462]
[1757484602436,0.647719,111660.0,111650.0,0.22407462]
[1757484602645,0.649789,111660.0,111650.0,0.14393287]
[1757484604550,0.499229,111660.0,111650.0,0.13879287]
[1757484604798,0.649789,111660.0,111650.0,0.13879287]
[1757484605286,0.649789,111660.0,111650.0,0.14081287]
[1757484605513,0.30263,111660.0,111650.0,0.14393287]
[1757484605752,0.649789,111660.0,111650.0,0.14393287]
[1757484605952,0.649789,111660.0,111650.0,0.13879287]
[1757484608386,0.649789,111660.0,111650.0,0.14191287]
[1757484608605,0.649789,111660.0,111650.0,0.14393287]
[1757484609691,0.649789,111660.0,111650.0,0.13879287]
[1757484609910,0.74467499,111660.0,111650.0,0.13879287]
[1757484610148,0.92379016,111660.0,111650.0,0.00046272]
[1757484610361,0.92379016,111660.0,111650.0,0.17959393]
[1757484610571,0.80811564,111660.0,111650.0,0.17959393]
[1757484611693,0.87606928,111660.0,111650.0,0.17959393]
[1757484617799,0.80811564,111660.0,111650.0,0.17959393]
[1757484618014,0.80811564,111660.0,111650.0,0.00046272]
[1757484618414,0.99755564,111660.0,111650.0,0.17959393]
[1757484618635,1.14807564,111660.0,111650.0,0.17959393]
[1757484619142,1.17724455,111660.0,111650.0,0.17959393]
[1757484619349,1.17724455,111660.0,111650.0,0.00046272]
[1757484619779,1.17724455,111660.0,111650.0,0.17959393]
[1757484620266,1.17824455,111660.0,111650.0,0.17959393]
[1757484620479,1.24400289,111660.0,111650.0,0.17959393]
[1757484622185,1.33691888,111660.0,111650.0,0.00046272]
[1757484622930,1.36384827,111660.0,111650.0,0.00046272]
[1757484625088,1.29808993,111660.0,111650.0,0.00046272]
[1757484627288,1.43060104,111660.0,111650.0,0.00046272]
[1757484627806,1.44978104,111660.0,111650.0,0.00046272]
[1757484628093,1.44974104,111660.0,111650.0,0.00046272]
[1757484628506,1.43056104,111660.0,111650.0,0.00046272]
[1757484629404,1.3148188,111660.0,111650.0,0.00046272]
[1757484630444,1.43056104,111660.0,111650.0,0.00046272]
[1757484632483,1.44974104,111660.0,111650.0,0.00046272]
[1757484633097,1.45824104,111660.0,111650.0,0.00046272]
[1757484633697,1.30776104,111660.0,111650.0,0.00046272]
[1757484633906,1.40989213,111660.0,111650.0,0.00046272]
[1757484635221,1.44094471,111660.0,111650.0,0.00046272]
[1757484636285,1.47091651,111660.0,111650.0,0.00046272]
[1757484636505,1.86554858,111660.0,111650.0,0.00046272]
[1757484636718,1.93968418,111660.0,111650.0,0.00046272]
[1757484636927,2.02186498,111660.0,111650.0,0.00046272]
[1757484637136,1.97186498,111660.0,111650.0,0.00046272]
[1757484637344,2.69881418,111660.0,111650.0,0.00046272]
[1757484637591,2.28241198,111660.0,111650.0,0.00046272]
[1757484638021,2.28041198,111660.0,111650.0,0.00046272]
[1757484638441,2.28541198,111660.0,111650.0,0.00046272]
[1757484639365,2.26864311,111660.0,111650.0,0.00046272]
[1757484639562,2.28536412,111660.0,111650.0,0.00046272]
[1757484640038,2.29941404,111660.0,111650.0,0.00046272]
[1757484641160,2.29937404,111660.0,111650.0,0.00046272]
[1757484641381,2.26719324,111660.0,111650.0,0.00046272]
[1757484642293,2.29937404,111660.0,111650.0,0.00046272]
[1757484642503,2.11675324,111660.0,111650.0,0.00046272]
[1757484642690,2.26719324,111660.0,111650.0,0.00046272]
[1757484645134,2.00664624,111660.0,111650.0,0.00046272]
[1757484645355,1.95664624,111660.0,111650.0,0.00046272]
[1757484645577,2.03882704,111660.0,111650.0,0.00046272]
[1757484645801,2.00664624,111660.0,111650.0,0.00046272]
[1757484647068,2.00659126,111660.0,111650.0,0.00046272]
[1757484647255,2.03877206,111660.0,111650.0,0.00046272]
[1757484647393,1.98877206,111660.0,111650.0,0.00046272]
[1757484647634,2.00642838,111660.0,111650.0,0.00046272]
[1757484650019,2.09642838,111660.0,111650.0,0.00046272]
[1757484650650,1.86661901,111660.0,111650.0,0.00566272]
[1757484650904,1.99193243,111660.0,111650.0,0.00566272]
[1757484651358,2.01705901,111660.0,111650.0,0.00566272]
[1757484651806,1.85256909,111660.0,111650.0,0.00566272]
[1757484652047,1.94746788,111660.0,111650.0,0.02928272]
[1757484652279,2.07043645,111660.0,111650.0,0.02928272]
[1757484654853,2.08448494,111660.0,111650.0,0.02928272]
[1757484657134,2.08448494,111660.0,111650.0,0.00566272]
[1757484657369,2.33025009,111660.0,111650.0,0.00566272]
[1757484658231,2.33029162,111660.0,111650.0,0.00566272]
[1757484660665,2.33227162,111660.0,111650.0,0.00566272]
[1757484660989,2.35740827,111660.0,111650.0,0.00566272]
[1757484661471,2.34890827,111660.0,111650.0,0.00566272]
[1757484663218,2.23316603,111660.0,111650.0,0.00566272]
[1757484665181,2.18973863,111660.0,111650.0,0.00566272]
[1757484665341,2.23314286,111660.0,111650.0,0.00566272]
[1757484665558,2.23310286,111660.0,111650.0,0.00566272]
[1757484666559,2.3573451,111660.0,111650.0,0.00566272]
[1757484667167,2.3573451,111660.0,111650.0,0.02928272]
[1757484667168,1.74069581,111660.0,111650.0,0.02928272]
[1757484667408,1.60540227,111660.0,111650.0,0.02928272]
[1757484667629,1.70709602,111660.0,111650.0,0.02928272]
[1757484667858,2.04709602,111660.0,111650.0,0.02928272]
[1757484668308,2.03673637,111660.0,111650.0,0.02928272]
[1757484668511,2.06478895,111660.0,111650.0,0.02928272]
[1757484669013,2.06578895,111660.0,111650.0,0.02928272]
[1757484669229,2.12125523,111660.0,111650.0,0.02928272]
[1757484669445,2.10196446,111660.0,111650.0,0.02928272]
[1757484669880,2.12125743,111660.0,111650.0,0.02928272]
[1757484670328,2.10196446,111660.0,111650.0,0.02928272]
[1757484670549,2.21768074,111660.0,111650.0,0.02928272]
[1757484675647,2.21769498,111660.0,111650.0,0.02928272]
[1757484676710,2.39330536,111660.0,111650.0,0.00046272]
[1757484676993,2.99639025,111660.0,111650.0,0.00046272]
[1757484677242,2.52104251,111660.0,111650.0,0.00046272]
[1757484677469,3.11595711,111660.0,111650.0,0.00046272]
[1757484677695,3.19813791,111660.0,111650.0,0.00046272]
[1757484677906,3.17402445,111660.0,111650.0,0.00046272]
[1757484678337,3.34197187,111660.0,111650.0,1e-08]
[1757484678551,0.55018378,111650.0,111640.0,0.2]
[1757484678771,1.38624245,111650.0,111640.0,0.20013868]
[1757484679007,1.53656245,111650.0,111640.0,0.20013868]
[1757484679210,1.56350257,111650.0,111640.0,0.20013868]
[1757484679403,1.56350176,111650.0,111640.0,0.20013868]
[1757484679808,1.41418176,111650.0,111640.0,0.20013868]
[1757484680040,1.56450176,111650.0,111640.0,0.20013868]
[1757484680247,1.54532176,111650.0,111640.0,0.20013868]
[1757484684180,1.559372,111650.0,111640.0,0.20013868]
[1757484685653,1.559372,111650.0,111630.0,0.0004]
[1757484685654,2.13587611,111640.0,111630.0,0.0004]
[1757484685858,2.97777377,111640.0,111630.0,0.0004]
[1757484686064,3.04320003,111640.0,111630.0,0.0004]
[1757484686269,3.04628003,111640.0,111630.0,0.0004]
[1757484686483,2.89596003,111640.0,111630.0,0.0004]
[1757484686704,3.04628003,111640.0,111630.0,0.0004]
[1757484686916,3.04626287,111640.0,111630.0,0.0004]
[1757484687333,3.02317163,111640.0,111630.0,0.0004]
[1757484687543,3.04721209,111640.0,111630.0,0.0004]
[1757484688339,3.02673255,111640.0,111630.0,0.0004]
[1757484688541,2.87641255,111640.0,111630.0,0.0004]
[1757484688784,2.50593141,111640.0,111630.0,0.0004]
[1757484688962,2.47358773,111640.0,111630.0,0.0004]
[1757484689765,2.47758773,111640.0,111630.0,0.0004]
[1757484690126,2.54433819,111640.0,111630.0,0.0004]
[1757484690331,2.54733819,111640.0,111630.0,0.0004]
[1757484690513,3.04733819,111640.0,111630.0,0.0004]
[1757484692075,3.14171819,111640.0,111630.0,0.0004]
[1757484692293,2.89393819,111640.0,111630.0,0.0004]
[1757484692506,3.04425819,111640.0,111630.0,0.0004]
[1757484692721,3.05831021,111640.0,111630.0,0.0004]
[1757484693193,2.83267983,111640.0,111630.0,0.00536]
[1757484693434,2.83267983,111640.0,111630.0,0.02949]
[1757484693435,2.1279937,111640.0,111630.0,0.02949]
[1757484693646,2.45069486,111640.0,111630.0,0.02949]
[1757484694278,2.64734782,111640.0,111630.0,0.02949]
[1757484695115,2.64834782,111640.0,111630.0,0.02949]
[1757484695321,2.74026381,111640.0,111630.0,0.02949]
[1757484696885,2.58994381,111640.0,111630.0,0.02949]
[1757484697064,2.74026381,111640.0,111630.0,0.02949]
[1757484697275,2.72352101,111640.0,111630.0,0.02949]
[1757484697487,2.74022041,111640.0,111630.0,0.02949]
[1757484697695,2.75945752,111640.0,111630.0,0.02949]
[1757484698098,2.75945752,111640.0,111630.0,0.00536]
[1757484698325,2.60913752,111640.0,111630.0,0.00536]
[1757484698544,2.75945752,111640.0,111630.0,0.00536]
[1757484698713,2.7918012,111640.0,111630.0,0.00536]
[1757484699127,2.6414812,111640.0,111630.0,0.00536]
[1757484699366,2.7918012,111640.0,111630.0,0.00536]
[1757484699664,2.8003012,111640.0,111630.0,0.00536]
[1757484700097,2.6499812,111640.0,111630.0,0.00536]
[1757484700271,2.8002612,111640.0,111630.0,0.00536]
[1757484701378,2.8022112,111640.0,111630.0,0.0004]
[1757484702054,2.8022112,111640.0,111630.0,0.00541]
[1757484702316,2.81056949,111640.0,111630.0,0.00541]
[1757484702459,2.79133238,111640.0,111630.0,0.00541]
[1757484702656,2.66030982,111640.0,111630.0,0.00541]
[1757484702864,2.81058982,111640.0,111630.0,0.00541]
[1757484703071,2.81058982,111640.0,111630.0,0.0004]
[1757484703275,2.81990017,111640.0,111630.0,0.0004]
[1757484703539,2.66658017,111640.0,111630.0,0.0004]
[1757484703756,2.81686017,111640.0,111630.0,0.0004]
[1757484703973,2.66658017,111640.0,111630.0,0.0004]
[1757484704190,2.84198675,111640.0,111630.0,0.0004]
[1757484704427,2.84502675,111640.0,111630.0,0.0004]
[1757484704662,2.86909855,111640.0,111630.0,0.0004]
[1757484704894,3.38139969,111640.0,111630.0,0.0004]
[1757484705113,2.86059855,111640.0,111630.0,0.0004]
[1757484705844,2.89282189,111640.0,111630.0,0.0004]
[1757484706346,2.86875009,111640.0,111630.0,0.0004]
[1757484707452,3.38955123,111640.0,111630.0,0.0004]
[1757484708658,3.23927123,111640.0,111630.0,0.0004]
[1757484708918,2.83336641,111640.0,111630.0,0.0004]
[1757484709338,2.88163761,111640.0,111630.0,0.0004]
[1757484710026,2.89013761,111640.0,111630.0,0.0004]
[1757484711068,2.89317761,111640.0,111630.0,0.0004]
[1757484711284,3.44632243,111640.0,111630.0,0.0004]
[1757484711494,3.49632243,111640.0,111630.0,0.0004]
[1757484711710,3.46414163,111640.0,111630.0,0.0004]
[1757484712363,3.60414163,111640.0,111630.0,0.0004]
[1757484712784,3.59564163,111640.0,111630.0,0.0004]
[1757484714147,3.56025795,111640.0,111630.0,0.0004]
[1757484714368,2.86662423,111640.0,111630.0,0.00541]
[1757484714581,3.01686423,111640.0,111630.0,0.00541]
[1757484714799,3.01686423,111640.0,111630.0,0.0004]
[1757484715723,2.94708074,111640.0,111630.0,0.00541]
[1757484715991,2.94708074,111640.0,111630.0,0.02805]
[1757484716208,2.74856954,111640.0,111630.0,0.02805]
[1757484716421,2.92986212,111640.0,111630.0,0.02805]
[1757484716604,2.95398831,111640.0,111630.0,0.02805]
[1757484717137,2.80374831,111640.0,111630.0,0.02805]
[1757484717652,2.95398831,111640.0,111630.0,0.02805]
[1757484717858,2.80374831,111640.0,111630.0,0.02805]
[1757484718068,2.50717936,111640.0,111630.0,0.02805]
[1757484718280,2.10268551,111640.0,111630.0,0.02805]
[1757484718494,2.60012627,111640.0,111630.0,0.02805]
[1757484719149,2.58607425,111640.0,111630.0,0.02805]
[1757484720616,2.41170806,111640.0,111630.0,0.02805]
[1757484720852,2.6475937,111640.0,111630.0,0.02805]
[1757484721457,2.6465937,111640.0,111630.0,0.02805]
[1757484722269,2.67764628,111640.0,111630.0,0.02805]
[1757484723278,2.67768072,111640.0,111630.0,0.02805]
[1757484723460,2.40447215,111640.0,111630.0,0.02805]
[1757484723685,2.54633393,111640.0,111630.0,0.02805]
[1757484724987,2.46032603,111640.0,111630.0,0.2072133]
[1757484725205,2.14623283,111640.0,111630.0,0.2072133]
[1757484726730,2.17728541,111640.0,111630.0,0.02805]
[1757484726938,2.30154508,111640.0,111630.0,0.02905]
[1757484727391,1.80154508,111640.0,111630.0,0.02905]
[1757484727962,1.7692014,111640.0,111630.0,0.02905]
[1757484728687,1.7607014,111640.0,111630.0,0.02905]
[1757484728893,1.7607014,111640.0,111630.0,0.03005]
[1757484730143,1.97709546,111640.0,111630.0,0.0024]
[1757484730390,1.98013546,111640.0,111630.0,0.0024]
[1757484730618,1.97709546,111640.0,111630.0,0.0024]
[1757484732525,1.80372432,111640.0,111630.0,0.0024]
[1757484732751,1.87209973,111640.0,111630.0,0.0024]
[1757484733172,1.75628973,111640.0,111630.0,0.0024]
[1757484733613,1.75628973,111640.0,111630.0,0.00456]
[1757484733818,1.75433973,111640.0,111630.0,0.0077]
[1757484734248,1.72199605,111640.0,111630.0,0.0077]
[1757484734637,1.71547605,111640.0,111630.0,0.0077]
[1757484737487,1.74779623,111640.0,111630.0,0.0024]
[1757484737704,1.71857255,111640.0,111630.0,0.0024]
[1757484737933,1.71545255,111640.0,111630.0,0.0024]
[1757484738183,1.62155656,111640.0,111630.0,0.0077]
[1757484738643,1.59050398,111640.0,111630.0,0.0077]
[1757484738880,1.59046398,111640.0,111630.0,0.03064]
[1757484739114,1.20864398,111640.0,111630.0,0.03064]
[1757484739343,1.59046398,111640.0,111630.0,0.03064]
[1757484739794,1.59896398,111640.0,111630.0,0.03064]
[1757484743525,1.39896398,111640.0,111630.0,0.03064]
[1757484743731,1.59896398,111640.0,111630.0,0.03064]
[1757484744168,1.38038857,111640.0,111630.0,0.23082499]
[1757484744440,1.53054857,111640.0,111630.0,0.0077]
[1757484746487,1.56358115,111640.0,111630.0,0.0077]
[1757484748060,1.56160115,111640.0,111630.0,0.0077]
[1757484752015,1.41144115,111640.0,111630.0,0.0077]
[1757484752228,1.53054857,111640.0,111630.0,0.2098033]
[1757484752994,1.53054857,111640.0,111630.0,0.03064]
[1757484753407,0.96962132,111640.0,111630.0,0.2098033]
[1757484753615,1.11978132,111640.0,111630.0,0.2098033]
[1757484753840,1.23559132,111640.0,111630.0,0.2098033]
[1757484755995,1.08543132,111640.0,111630.0,0.2098033]
[1757484756163,1.23559132,111640.0,111630.0,0.2098033]
[1757484756569,1.11978132,111640.0,111630.0,0.2098033]
[1757484756794,1.12694238,111640.0,111630.0,0.2098033]
[1757484762996,1.12690238,111640.0,111630.0,0.2098033]
[1757484766083,1.30604963,111640.0,111630.0,0.2098033]
[1757484766388,1.30604963,111640.0,111630.0,0.1868633]
[1757484768491,1.42185963,111640.0,111630.0,0.1868633]
[1757484768904,1.51377562,111640.0,111630.0,0.1868633]
[1757484769698,1.28215562,111640.0,111630.0,0.1868633]
[1757484769902,1.51377562,111640.0,111630.0,0.1868633]